[Event "Titled Tuesday Blitz February 28 Late 2023"]
[White "Guimaraes, Wagner Peixoto"]
[Black "Pissama Ntsaou, Martial"]
[WhiteFideId "2100940"]
[BlackFideId "17400864"]
[WhiteElo "2185"]
[BlackElo "2062"]
[Result "1/2-1/2"]
[Round "05"]
[TimeControl "180+2"]
[Date "2023.02.28"]
[WhiteClock "0:00:04"]
[BlackClock "0:00:19"]

1. Nf3 {[%clk 0:02:57]}  Nf6 {[%clk 0:02:59]} 2. g3 {[%clk 0:02:56]}  c5 {[%clk 0:02:59]} 3. Bg2 {[%clk 0:02:56]}  g6 {[%clk 0:02:59]} 4. c4 {[%clk 0:02:56]}  Bg7 {[%clk 0:02:59]} 5. O-O {[%clk 0:02:56]}  O-O {[%clk 0:02:59]} 6. d4 {[%clk 0:02:56]}  cxd4 {[%clk 0:02:54]} 7. Nxd4 {[%clk 0:02:57]}  Nc6 {[%clk 0:02:54]} 8. Nc3 {[%clk 0:02:57]}  d6 {[%clk 0:02:52]} 9. b3 {[%clk 0:02:51]}  Bd7 {[%clk 0:02:52]} 10. Bb2 {[%clk 0:02:50]}  a6 {[%clk 0:02:42]} 11. Rc1 {[%clk 0:02:49]}  Rc8 {[%clk 0:02:38]} 12. Qd2 {[%clk 0:02:46]}  Ne5 {[%clk 0:02:32]} 13. Bxb7 {[%clk 0:02:38]}  Rc7 {[%clk 0:02:11]} 14. Bg2 {[%clk 0:02:33]}  Nc6 {[%clk 0:02:01]} 15. Nxc6 {[%clk 0:02:24]}  Bxc6 {[%clk 0:02:01]} 16. Nd5 {[%clk 0:02:19]}  Bxd5 {[%clk 0:01:51]} 17. cxd5 {[%clk 0:02:18]}  Rxc1 {[%clk 0:01:37]} 18. Rxc1 {[%clk 0:02:15]}  a5 {[%clk 0:01:33]} 19. Rc6 {[%clk 0:02:02]}  a4 {[%clk 0:01:28]} 20. bxa4 {[%clk 0:01:56]}  Qd7 {[%clk 0:01:27]} 21. a5 {[%clk 0:01:43]}  Rb8 {[%clk 0:01:22]} 22. a6 {[%clk 0:01:04]}  h5 {[%clk 0:01:16]} 23. h3 {[%clk 0:01:01]}  Kh7 {[%clk 0:01:14]} 24. Bxf6 {[%clk 0:00:45]}  Rb1+ {[%clk 0:01:07]} 25. Kh2 {[%clk 0:00:44]}  Bxf6 {[%clk 0:01:08]} 26. Qc2 {[%clk 0:00:39]}  Rb2 {[%clk 0:01:06]} 27. Qc4 {[%clk 0:00:25]}  Qa7 {[%clk 0:00:56]} 28. Qf4 {[%clk 0:00:18]}  Rxa2 {[%clk 0:00:49]} 29. h4 {[%clk 0:00:13]}  Rxa6 {[%clk 0:00:47]} 30. Rxa6 {[%clk 0:00:12]}  Qxa6 {[%clk 0:00:47]} 31. Bf3 {[%clk 0:00:10]}  Qa2 {[%clk 0:00:40]} 32. Qe4 {[%clk 0:00:10]}  Kg7 {[%clk 0:00:39]} 33. Qe3 {[%clk 0:00:07]}  Qb2 {[%clk 0:00:35]} 34. Qe4 {[%clk 0:00:06]}  Qe5 {[%clk 0:00:31]} 35. Qxe5 {[%clk 0:00:07]}  Bxe5 {[%clk 0:00:31]} 36. e3 {[%clk 0:00:07]}  Kf8 {[%clk 0:00:29]} 37. Kg2 {[%clk 0:00:07]}  Ke8 {[%clk 0:00:30]} 38. Be2 {[%clk 0:00:07]}  Kd8 {[%clk 0:00:29]} 39. f4 {[%clk 0:00:07]}  Bc3 {[%clk 0:00:28]} 40. e4 {[%clk 0:00:07]}  e6 {[%clk 0:00:21]} 41. dxe6 {[%clk 0:00:06]}  fxe6 {[%clk 0:00:21]} 42. Kf3 {[%clk 0:00:05]}  Ke7 {[%clk 0:00:21]} 43. Bb5 {[%clk 0:00:05]}  Kf6 {[%clk 0:00:20]} 44. Bd7 {[%clk 0:00:04]}  e5 {[%clk 0:00:19]} 1/2-1/2


[Site "https://www.chess.com"]

[Event "Titled Tuesday Blitz February 28 Late 2023"]
[White "Lalanne, Pablo"]
[Black "Vargas, Mauricio"]
[WhiteFideId "112151"]
[BlackFideId "4404572"]
[WhiteElo "2120"]
[BlackElo "2025"]
[Result "1-0"]
[Round "05"]
[TimeControl "180+2"]
[Date "2023.02.28"]
[WhiteClock "0:00:14"]
[BlackClock "0:00:02"]

1. e4 {[%clk 0:02:54]}  e5 {[%clk 0:02:59]} 2. Nf3 {[%clk 0:02:54]}  Nc6 {[%clk 0:03:00]} 3. Bb5 {[%clk 0:02:53]}  Nf6 {[%clk 0:02:55]} 4. d3 {[%clk 0:02:51]}  Ne7 {[%clk 0:02:49]} 5. Nxe5 {[%clk 0:02:46]}  c6 {[%clk 0:02:48]} 6. Nxf7 {[%clk 0:02:33]}  Kxf7 {[%clk 0:02:45]} 7. Bc4+ {[%clk 0:02:33]}  d5 {[%clk 0:02:41]} 8. Bb3 {[%clk 0:02:32]}  Ke8 {[%clk 0:02:29]} 9. e5 {[%clk 0:02:30]}  Nfg8 {[%clk 0:02:12]} 10. O-O {[%clk 0:02:18]}  g6 {[%clk 0:02:06]} 11. d4 {[%clk 0:02:00]}  Nh6 {[%clk 0:02:03]} 12. Bg5 {[%clk 0:01:55]}  Nhf5 {[%clk 0:02:00]} 13. Bf6 {[%clk 0:01:48]}  Rg8 {[%clk 0:01:57]} 14. c3 {[%clk 0:01:41]}  Be6 {[%clk 0:01:53]} 15. Na3 {[%clk 0:01:35]}  Kd7 {[%clk 0:01:52]} 16. Nc2 {[%clk 0:01:34]}  Bg7 {[%clk 0:01:44]} 17. g4 {[%clk 0:01:24]}  Nh6 {[%clk 0:01:39]} 18. h3 {[%clk 0:01:23]}  Bxf6 {[%clk 0:01:30]} 19. exf6 {[%clk 0:01:24]}  Nc8 {[%clk 0:01:28]} 20. Qd2 {[%clk 0:01:22]}  Nf7 {[%clk 0:01:25]} 21. g5 {[%clk 0:01:21]}  Bxh3 {[%clk 0:01:23]} 22. Rfe1 {[%clk 0:01:21]}  Re8 {[%clk 0:01:18]} 23. c4 {[%clk 0:01:19]}  dxc4 {[%clk 0:01:16]} 24. Bxc4 {[%clk 0:01:19]}  Ncd6 {[%clk 0:01:10]} 25. Bb3 {[%clk 0:01:08]}  Kc7 {[%clk 0:01:03]} 26. Qf4 {[%clk 0:01:06]}  Qd7 {[%clk 0:00:58]} 27. Ne3 {[%clk 0:01:04]}  Rad8 {[%clk 0:00:48]} 28. Rac1 {[%clk 0:01:03]}  Kb8 {[%clk 0:00:47]} 29. d5 {[%clk 0:01:02]}  cxd5 {[%clk 0:00:43]} 30. Bxd5 {[%clk 0:00:59]}  Ka8 {[%clk 0:00:39]} 31. Red1 {[%clk 0:00:45]}  Be6 {[%clk 0:00:27]} 32. Bg2 {[%clk 0:00:41]}  Qb5 {[%clk 0:00:21]} 33. Nd5 {[%clk 0:00:25]}  Bxd5 {[%clk 0:00:19]} 34. Rxd5 {[%clk 0:00:23]}  Qxb2 {[%clk 0:00:19]} 35. Rcd1 {[%clk 0:00:22]}  Nf5 {[%clk 0:00:14]} 36. Rd7 {[%clk 0:00:18]}  Rxd7 {[%clk 0:00:14]} 37. Rxd7 {[%clk 0:00:18]}  Ne5 {[%clk 0:00:12]} 38. Rxb7 {[%clk 0:00:16]}  Qxb7 {[%clk 0:00:11]} 39. Bxb7+ {[%clk 0:00:16]}  Kxb7 {[%clk 0:00:11]} 40. Qb4+ {[%clk 0:00:15]}  Ka8 {[%clk 0:00:08]} 41. Qb5 {[%clk 0:00:14]}  Nf3+ {[%clk 0:00:02]} 42. Kg2 {[%clk 0:00:14]} 1-0


[Site "https://www.chess.com"]

[Event "Titled Tuesday Blitz February 28 Late 2023"]
[White "Quirke, Jeffrey"]
[Black "tandercat"]
[WhiteFideId "2013029"]
[WhiteElo "2206"]
[BlackElo "1874"]
[Result "0-1"]
[Round "05"]
[TimeControl "180+2"]
[Date "2023.02.28"]
[WhiteClock "0:00:01"]
[BlackClock "0:00:04"]

1. e4 {[%clk 0:02:16]}  c5 {[%clk 0:02:58]} 2. c3 {[%clk 0:02:14]}  Nf6 {[%clk 0:02:57]} 3. e5 {[%clk 0:02:15]}  Nd5 {[%clk 0:02:57]} 4. d4 {[%clk 0:02:16]}  cxd4 {[%clk 0:02:57]} 5. cxd4 {[%clk 0:02:16]}  Nc6 {[%clk 0:02:56]} 6. Nf3 {[%clk 0:02:15]}  d6 {[%clk 0:02:56]} 7. Bc4 {[%clk 0:02:12]}  Nb6 {[%clk 0:02:55]} 8. Bb5 {[%clk 0:02:08]}  dxe5 {[%clk 0:02:42]} 9. Nxe5 {[%clk 0:02:07]}  Bd7 {[%clk 0:02:42]} 10. Nxd7 {[%clk 0:02:01]}  Qxd7 {[%clk 0:02:40]} 11. Be3 {[%clk 0:02:00]}  a6 {[%clk 0:02:35]} 12. Bxc6 {[%clk 0:01:43]}  Qxc6 {[%clk 0:02:20]} 13. O-O {[%clk 0:01:43]}  e6 {[%clk 0:02:16]} 14. Nc3 {[%clk 0:01:43]}  Rd8 {[%clk 0:02:08]} 15. Rc1 {[%clk 0:01:42]}  Nd5 {[%clk 0:01:59]} 16. Qb3 {[%clk 0:01:28]}  Be7 {[%clk 0:01:46]} 17. Ne4 {[%clk 0:01:21]}  Qd7 {[%clk 0:01:31]} 18. Nc5 {[%clk 0:00:59]}  Bxc5 {[%clk 0:01:30]} 19. Rxc5 {[%clk 0:01:00]}  O-O {[%clk 0:01:27]} 20. Rfc1 {[%clk 0:00:59]}  Rc8 {[%clk 0:01:24]} 21. Qc4 {[%clk 0:00:51]}  Rxc5 {[%clk 0:01:18]} 22. Qxc5 {[%clk 0:00:52]}  h6 {[%clk 0:01:14]} 23. h3 {[%clk 0:00:50]}  Rd8 {[%clk 0:01:09]} 24. a3 {[%clk 0:00:49]}  Nf6 {[%clk 0:01:01]} 25. b4 {[%clk 0:00:32]}  Ne4 {[%clk 0:00:59]} 26. Qc7 {[%clk 0:00:29]}  Nf6 {[%clk 0:00:50]} 27. Qxd7 {[%clk 0:00:21]}  Rxd7 {[%clk 0:00:49]} 28. Rc5 {[%clk 0:00:20]}  Nd5 {[%clk 0:00:44]} 29. b5 {[%clk 0:00:17]}  Rc7 {[%clk 0:00:36]} 30. b6 {[%clk 0:00:10]}  Rd7 {[%clk 0:00:33]} 31. a4 {[%clk 0:00:08]}  Nxb6 {[%clk 0:00:31]} 32. a5 {[%clk 0:00:07]}  Nd5 {[%clk 0:00:30]} 33. Rc8+ {[%clk 0:00:07]}  Kh7 {[%clk 0:00:30]} 34. g4 {[%clk 0:00:06]}  Kg6 {[%clk 0:00:28]} 35. Kg2 {[%clk 0:00:07]}  Rc7 {[%clk 0:00:26]} 36. Rd8 {[%clk 0:00:05]}  Rc2 {[%clk 0:00:20]} 37. Kf3 {[%clk 0:00:05]}  Rc3 {[%clk 0:00:19]} 38. Rd7 {[%clk 0:00:06]}  Rc7 {[%clk 0:00:19]} 39. Rd8 {[%clk 0:00:05]}  Rc3 {[%clk 0:00:17]} 40. Rd7 {[%clk 0:00:05]}  Ra3 {[%clk 0:00:14]} 41. Rxb7 {[%clk 0:00:04]}  Rxa5 {[%clk 0:00:14]} 42. h4 {[%clk 0:00:05]}  Ra3 {[%clk 0:00:09]} 43. h5+ {[%clk 0:00:05]}  Kf6 {[%clk 0:00:08]} 44. Ke4 {[%clk 0:00:04]}  Nc3+ {[%clk 0:00:07]} 45. Kf3 {[%clk 0:00:04]}  Nd5 {[%clk 0:00:07]} 46. Ke4 {[%clk 0:00:03]}  a5 {[%clk 0:00:07]} 47. f4 {[%clk 0:00:03]}  Nc3+ {[%clk 0:00:06]} 48. Kd3 {[%clk 0:00:02]}  Nd5+ {[%clk 0:00:04]} 49. Kd2 {[%clk 0:00:02]}  Rxe3 {[%clk 0:00:04]} 50. Ra7 {[%clk 0:00:02]}  Re4 {[%clk 0:00:03]} 51. Rxa5 {[%clk 0:00:01]}  Rxd4+ {[%clk 0:00:03]} 52. Ke2 {[%clk 0:00:01]}  Rxf4 {[%clk 0:00:04]} 0-1


[Site "https://www.chess.com"]

[Event "Titled Tuesday Blitz February 28 Late 2023"]
[White "Nakamura, Hikaru"]
[Black "Martinez Alcantara, Jose Eduardo"]
[WhiteFideId "2016192"]
[BlackFideId "3805662"]
[WhiteElo "2879"]
[BlackElo "2712"]
[Result "1-0"]
[Round "06"]
[TimeControl "180+2"]
[Date "2023.02.28"]
[WhiteClock "0:02:00"]
[BlackClock "0:01:37"]

1. e4 {[%clk 0:03:00]}  e5 {[%clk 0:02:59]} 2. Bc4 {[%clk 0:02:58]}  Nf6 {[%clk 0:02:59]} 3. d3 {[%clk 0:02:58]}  c6 {[%clk 0:02:59]} 4. Nf3 {[%clk 0:02:55]}  Be7 {[%clk 0:02:57]} 5. O-O {[%clk 0:02:54]}  d6 {[%clk 0:02:57]} 6. c3 {[%clk 0:02:53]}  O-O {[%clk 0:02:58]} 7. Nbd2 {[%clk 0:02:53]}  Nbd7 {[%clk 0:02:54]} 8. Bb3 {[%clk 0:02:52]}  Nc5 {[%clk 0:02:47]} 9. Bc2 {[%clk 0:02:53]}  Re8 {[%clk 0:02:46]} 10. d4 {[%clk 0:02:51]}  Ncd7 {[%clk 0:02:46]} 11. Re1 {[%clk 0:02:51]}  Bf8 {[%clk 0:02:46]} 12. Nf1 {[%clk 0:02:51]}  g6 {[%clk 0:02:44]} 13. Ng3 {[%clk 0:02:51]}  Bg7 {[%clk 0:02:44]} 14. h3 {[%clk 0:02:47]}  h6 {[%clk 0:02:43]} 15. Be3 {[%clk 0:02:46]}  Qc7 {[%clk 0:02:42]} 16. Qd2 {[%clk 0:02:45]}  Kh7 {[%clk 0:02:37]} 17. Rad1 {[%clk 0:02:44]}  a5 {[%clk 0:02:33]} 18. a4 {[%clk 0:02:42]}  Nb6 {[%clk 0:02:14]} 19. b3 {[%clk 0:02:33]}  Nbd7 {[%clk 0:02:13]} 20. Bd3 {[%clk 0:02:26]}  b6 {[%clk 0:01:55]} 21. Bc4 {[%clk 0:02:11]}  d5 {[%clk 0:01:52]} 22. exd5 {[%clk 0:02:08]}  cxd5 {[%clk 0:01:53]} 23. Bb5 {[%clk 0:02:09]}  e4 {[%clk 0:01:54]} 24. Bf4 {[%clk 0:02:04]}  Qd8 {[%clk 0:01:39]} 25. Ne5 {[%clk 0:02:03]}  Bb7 {[%clk 0:01:40]} 26. Nxf7 {[%clk 0:02:02]}  Qe7 {[%clk 0:01:36]} 27. Nd6 {[%clk 0:02:01]}  Reb8 {[%clk 0:01:36]} 28. Nxb7 {[%clk 0:02:01]}  Rxb7 {[%clk 0:01:37]} 29. Bc6 {[%clk 0:02:02]}  Raa7 {[%clk 0:01:37]} 30. c4 {[%clk 0:02:00]} 1-0


[Site "https://www.chess.com"]

[Event "Titled Tuesday Blitz February 28 Late 2023"]
[White "Bluebaum, Matthias"]
[Black "Carlsen, Magnus"]
[WhiteFideId "24651516"]
[BlackFideId "1503014"]
[WhiteElo "2638"]
[BlackElo "2852"]
[Result "0-1"]
[Round "06"]
[TimeControl "180+2"]
[Date "2023.02.28"]
[WhiteClock "0:00:19"]
[BlackClock "0:00:57"]

1. d4 {[%clk 0:03:00]}  Nf6 {[%clk 0:02:56]} 2. c4 {[%clk 0:03:01]}  e6 {[%clk 0:02:56]} 3. Nc3 {[%clk 0:03:01]}  Bb4 {[%clk 0:02:56]} 4. e3 {[%clk 0:03:02]}  O-O {[%clk 0:02:56]} 5. Bd2 {[%clk 0:03:02]}  d5 {[%clk 0:02:53]} 6. Nf3 {[%clk 0:03:02]}  Re8 {[%clk 0:02:53]} 7. Rc1 {[%clk 0:03:02]}  a6 {[%clk 0:02:52]} 8. c5 {[%clk 0:03:01]}  Nc6 {[%clk 0:02:50]} 9. a3 {[%clk 0:02:41]}  Bxc3 {[%clk 0:02:49]} 10. Bxc3 {[%clk 0:02:42]}  Ne4 {[%clk 0:02:49]} 11. Qc2 {[%clk 0:02:40]}  e5 {[%clk 0:02:46]} 12. Nxe5 {[%clk 0:02:25]}  Nxe5 {[%clk 0:02:46]} 13. dxe5 {[%clk 0:02:26]}  Nxc5 {[%clk 0:02:27]} 14. b4 {[%clk 0:02:16]}  Ne4 {[%clk 0:02:26]} 15. Bb2 {[%clk 0:02:16]}  c6 {[%clk 0:02:26]} 16. Bd3 {[%clk 0:02:15]}  Bf5 {[%clk 0:02:16]} 17. f3 {[%clk 0:01:42]}  Qh4+ {[%clk 0:02:14]} 18. Ke2 {[%clk 0:01:43]}  Qf2+ {[%clk 0:02:01]} 19. Kd1 {[%clk 0:01:42]}  Qxe3 {[%clk 0:02:02]} 20. Rf1 {[%clk 0:00:59]}  Ng3 {[%clk 0:01:14]} 21. hxg3 {[%clk 0:00:48]}  Bxd3 {[%clk 0:01:14]} 22. Qf2 {[%clk 0:00:48]}  Qg5 {[%clk 0:01:13]} 23. Re1 {[%clk 0:00:45]}  h5 {[%clk 0:01:13]} 24. Qd2 {[%clk 0:00:40]}  Qg6 {[%clk 0:01:13]} 25. Rc3 {[%clk 0:00:36]}  Bf5 {[%clk 0:01:11]} 26. Qf2 {[%clk 0:00:30]}  a5 {[%clk 0:01:11]} 27. Rh1 {[%clk 0:00:24]}  axb4 {[%clk 0:01:07]} 28. axb4 {[%clk 0:00:25]}  d4 {[%clk 0:01:04]} 29. Rc4 {[%clk 0:00:21]}  Be6 {[%clk 0:00:58]} 30. Rxd4 {[%clk 0:00:18]}  Qb1+ {[%clk 0:00:58]} 31. Bc1 {[%clk 0:00:19]}  Bb3+ {[%clk 0:00:57]} 0-1


[Site "https://www.chess.com"]

[Event "Titled Tuesday Blitz February 28 Late 2023"]
[White "Bortnyk, Olexandr"]
[Black "Yu, Yangyi"]
[WhiteFideId "14120828"]
[BlackFideId "8603820"]
[WhiteElo "2734"]
[BlackElo "2783"]
[Result "0-1"]
[Round "06"]
[TimeControl "180+2"]
[Date "2023.02.28"]
[WhiteClock "0:00:02"]
[BlackClock "0:00:32"]

1. d4 {[%clk 0:03:00]}  Nf6 {[%clk 0:02:58]} 2. Nc3 {[%clk 0:03:00]}  d5 {[%clk 0:02:58]} 3. Bf4 {[%clk 0:03:01]}  c6 {[%clk 0:02:52]} 4. e3 {[%clk 0:03:01]}  Bf5 {[%clk 0:02:51]} 5. Nf3 {[%clk 0:03:02]}  Nbd7 {[%clk 0:02:48]} 6. Ne5 {[%clk 0:03:02]}  h5 {[%clk 0:02:38]} 7. Bd3 {[%clk 0:03:00]}  e6 {[%clk 0:02:36]} 8. Bxf5 {[%clk 0:02:58]}  exf5 {[%clk 0:02:36]} 9. Ne2 {[%clk 0:02:50]}  Nxe5 {[%clk 0:02:32]} 10. Bxe5 {[%clk 0:02:51]}  Nd7 {[%clk 0:02:30]} 11. h4 {[%clk 0:02:41]}  Nxe5 {[%clk 0:02:26]} 12. dxe5 {[%clk 0:02:42]}  Qe7 {[%clk 0:02:26]} 13. f4 {[%clk 0:02:41]}  f6 {[%clk 0:02:15]} 14. Qd3 {[%clk 0:02:41]}  g6 {[%clk 0:02:10]} 15. exf6 {[%clk 0:02:27]}  Qxf6 {[%clk 0:02:11]} 16. O-O-O {[%clk 0:02:23]}  Bg7 {[%clk 0:02:10]} 17. c3 {[%clk 0:02:16]}  O-O-O {[%clk 0:02:09]} 18. Nd4 {[%clk 0:02:15]}  Rhe8 {[%clk 0:02:08]} 19. Nf3 {[%clk 0:02:16]}  Re7 {[%clk 0:02:03]} 20. Rhe1 {[%clk 0:02:14]}  Rde8 {[%clk 0:02:02]} 21. Kb1 {[%clk 0:02:14]}  a6 {[%clk 0:02:01]} 22. Re2 {[%clk 0:02:14]}  Kb8 {[%clk 0:01:55]} 23. a3 {[%clk 0:02:13]}  Qf7 {[%clk 0:01:50]} 24. g3 {[%clk 0:02:11]}  Bf6 {[%clk 0:01:49]} 25. Qc2 {[%clk 0:02:09]}  Rxe3 {[%clk 0:01:47]} 26. Rde1 {[%clk 0:01:46]}  R3e4 {[%clk 0:01:42]} 27. Qd3 {[%clk 0:01:31]}  Qc7 {[%clk 0:01:40]} 28. Nd2 {[%clk 0:01:29]}  R4e7 {[%clk 0:01:33]} 29. Rxe7 {[%clk 0:01:26]}  Rxe7 {[%clk 0:01:34]} 30. Rxe7 {[%clk 0:01:26]}  Qxe7 {[%clk 0:01:35]} 31. Kc2 {[%clk 0:01:27]}  Qe6 {[%clk 0:01:34]} 32. Kd1 {[%clk 0:01:25]}  Kc7 {[%clk 0:01:32]} 33. a4 {[%clk 0:01:24]}  Qe7 {[%clk 0:01:19]} 34. Qe2 {[%clk 0:01:11]}  Qxe2+ {[%clk 0:01:10]} 35. Kxe2 {[%clk 0:01:12]}  b5 {[%clk 0:01:05]} 36. axb5 {[%clk 0:00:57]}  cxb5 {[%clk 0:01:05]} 37. Kd3 {[%clk 0:00:57]}  a5 {[%clk 0:01:02]} 38. Nf3 {[%clk 0:00:47]}  Kd6 {[%clk 0:01:00]} 39. Ne1 {[%clk 0:00:34]}  Kc5 {[%clk 0:00:52]} 40. Nf3 {[%clk 0:00:32]}  b4 {[%clk 0:00:49]} 41. cxb4+ {[%clk 0:00:03]}  Kxb4 {[%clk 0:00:50]} 42. Ne5 {[%clk 0:00:02]}  a4 {[%clk 0:00:42]} 43. Kc2 {[%clk 0:00:02]}  Bxe5 {[%clk 0:00:32]} 44. fxe5 {[%clk 0:00:02]}  Kc5 {[%clk 0:00:32]} 45. Kd3 {[%clk 0:00:01]}  d4 {[%clk 0:00:31]} 46. e6 {[%clk 0:00:01]}  Kd6 {[%clk 0:00:32]} 47. Kxd4 {[%clk 0:00:02]}  Kxe6 {[%clk 0:00:32]} 0-1


[Site "https://www.chess.com"]

[Event "Titled Tuesday Blitz February 28 Late 2023"]
[White "Vachier-Lagrave, Maxime"]
[Black "Paravyan, David"]
[WhiteFideId "623539"]
[BlackFideId "4194985"]
[WhiteElo "2740"]
[BlackElo "2577"]
[Result "1-0"]
[Round "06"]
[TimeControl "180+2"]
[Date "2023.02.28"]
[WhiteClock "0:00:54"]
[BlackClock "0:00:01"]

1. e4 {[%clk 0:02:57]}  e5 {[%clk 0:03:00]} 2. Nf3 {[%clk 0:02:57]}  Nf6 {[%clk 0:03:00]} 3. d4 {[%clk 0:02:56]}  Nxe4 {[%clk 0:03:00]} 4. dxe5 {[%clk 0:02:54]}  Bc5 {[%clk 0:02:59]} 5. Bc4 {[%clk 0:02:53]}  Nxf2 {[%clk 0:02:59]} 6. Bxf7+ {[%clk 0:02:52]}  Kxf7 {[%clk 0:03:00]} 7. Qd5+ {[%clk 0:02:48]}  Kg6 {[%clk 0:03:01]} 8. Qxc5 {[%clk 0:02:44]}  Nxh1 {[%clk 0:03:01]} 9. Qc4 {[%clk 0:02:44]}  d5 {[%clk 0:02:38]} 10. exd6 {[%clk 0:02:39]}  Re8+ {[%clk 0:02:33]} 11. Kf1 {[%clk 0:02:39]}  Qxd6 {[%clk 0:02:11]} 12. Nc3 {[%clk 0:02:37]}  b6 {[%clk 0:01:28]} 13. b4 {[%clk 0:02:00]}  h6 {[%clk 0:00:41]} 14. Bf4 {[%clk 0:01:46]}  Qc6 {[%clk 0:00:37]} 15. Qd3+ {[%clk 0:01:46]}  Kf7 {[%clk 0:00:37]} 16. Kg1 {[%clk 0:01:43]}  Kg8 {[%clk 0:00:25]} 17. Kxh1 {[%clk 0:01:37]}  Bb7 {[%clk 0:00:24]} 18. Rd1 {[%clk 0:01:32]}  Qe6 {[%clk 0:00:15]} 19. b5 {[%clk 0:01:23]}  Bxf3 {[%clk 0:00:09]} 20. gxf3 {[%clk 0:01:24]}  Qf7 {[%clk 0:00:08]} 21. Nd5 {[%clk 0:01:06]}  Nd7 {[%clk 0:00:08]} 22. Nxc7 {[%clk 0:01:05]}  Qxf4 {[%clk 0:00:03]} 23. Nxa8 {[%clk 0:01:06]}  Nc5 {[%clk 0:00:03]} 24. Qd5+ {[%clk 0:01:02]}  Kh7 {[%clk 0:00:04]} 25. Rg1 {[%clk 0:00:54]}  Re2 {[%clk 0:00:04]} 26. Qh5 {[%clk 0:00:54]}  Qf5 {[%clk 0:00:01]} 27. Qxf5+ {[%clk 0:00:54]} 1-0


[Site "https://www.chess.com"]

[Event "Titled Tuesday Blitz February 28 Late 2023"]
[White "Andreikin, Dmitry"]
[Black "Sjugirov, Sanan"]
[WhiteFideId "4158814"]
[BlackFideId "4189302"]
[WhiteElo "2736"]
[BlackElo "2569"]
[Result "1-0"]
[Round "06"]
[TimeControl "180+2"]
[Date "2023.02.28"]
[WhiteClock "0:00:09"]
[BlackClock "0:00:04"]

1. c4 {[%clk 0:03:00]}  e6 {[%clk 0:02:59]} 2. Nc3 {[%clk 0:02:59]}  d5 {[%clk 0:02:59]} 3. d4 {[%clk 0:02:59]}  Nf6 {[%clk 0:02:55]} 4. Nf3 {[%clk 0:02:59]}  c6 {[%clk 0:02:53]} 5. g3 {[%clk 0:02:59]}  dxc4 {[%clk 0:02:49]} 6. Bg2 {[%clk 0:02:59]}  Nbd7 {[%clk 0:02:48]} 7. O-O {[%clk 0:02:59]}  Be7 {[%clk 0:02:48]} 8. e4 {[%clk 0:02:58]}  O-O {[%clk 0:02:43]} 9. Bf4 {[%clk 0:02:58]}  Re8 {[%clk 0:02:38]} 10. a4 {[%clk 0:02:57]}  b6 {[%clk 0:02:37]} 11. Qe2 {[%clk 0:02:56]}  a5 {[%clk 0:02:36]} 12. Rfd1 {[%clk 0:02:54]}  Ba6 {[%clk 0:02:34]} 13. h4 {[%clk 0:02:53]}  h6 {[%clk 0:02:24]} 14. Nd2 {[%clk 0:02:47]}  Bb4 {[%clk 0:02:19]} 15. g4 {[%clk 0:02:16]}  Qe7 {[%clk 0:02:08]} 16. g5 {[%clk 0:02:14]}  hxg5 {[%clk 0:02:09]} 17. hxg5 {[%clk 0:02:14]}  Nh7 {[%clk 0:02:09]} 18. e5 {[%clk 0:02:13]}  Rac8 {[%clk 0:02:00]} 19. Qh5 {[%clk 0:02:11]}  Ndf8 {[%clk 0:01:47]} 20. Be4 {[%clk 0:02:05]}  Bxc3 {[%clk 0:01:42]} 21. bxc3 {[%clk 0:02:05]}  c5 {[%clk 0:01:41]} 22. dxc5 {[%clk 0:01:45]}  Rxc5 {[%clk 0:01:34]} 23. f3 {[%clk 0:01:35]}  Bb7 {[%clk 0:01:29]} 24. Bxh7+ {[%clk 0:01:31]}  Nxh7 {[%clk 0:01:28]} 25. Kf2 {[%clk 0:01:32]}  g6 {[%clk 0:00:39]} 26. Qh4 {[%clk 0:01:22]}  Qf8 {[%clk 0:00:39]} 27. Ne4 {[%clk 0:00:46]}  Bxe4 {[%clk 0:00:38]} 28. fxe4 {[%clk 0:00:47]}  Qg7 {[%clk 0:00:21]} 29. Rh1 {[%clk 0:00:38]}  Rd8 {[%clk 0:00:18]} 30. Rab1 {[%clk 0:00:31]}  Rc7 {[%clk 0:00:14]} 31. Rxb6 {[%clk 0:00:29]}  Rcd7 {[%clk 0:00:15]} 32. Rd6 {[%clk 0:00:28]}  Kh8 {[%clk 0:00:02]} 33. Qh2 {[%clk 0:00:28]}  Kg8 {[%clk 0:00:02]} 34. Be3 {[%clk 0:00:19]}  Kh8 {[%clk 0:00:02]} 35. Bd4 {[%clk 0:00:17]}  Kg8 {[%clk 0:00:02]} 36. Qf4 {[%clk 0:00:15]}  Nf8 {[%clk 0:00:01]} 37. Qh4 {[%clk 0:00:11]}  Qh7 {[%clk 0:00:01]} 38. Ke3 {[%clk 0:00:09]}  Qxh4 {[%clk 0:00:01]} 39. Rxh4 {[%clk 0:00:10]}  Nh7 {[%clk 0:00:02]} 40. Kf4 {[%clk 0:00:10]}  Nf8 {[%clk 0:00:02]} 41. Rh1 {[%clk 0:00:09]}  Rb8 {[%clk 0:00:02]} 42. Bc5 {[%clk 0:00:07]}  Rdb7 {[%clk 0:00:02]} 43. Rhd1 {[%clk 0:00:06]}  Kg7 {[%clk 0:00:02]} 44. Rd8 {[%clk 0:00:06]}  Rxd8 {[%clk 0:00:02]} 45. Rxd8 {[%clk 0:00:07]}  Nd7 {[%clk 0:00:03]} 46. Be7 {[%clk 0:00:07]}  Ra7 {[%clk 0:00:03]} 47. Ke3 {[%clk 0:00:07]}  Rb7 {[%clk 0:00:03]} 48. Kd4 {[%clk 0:00:08]}  Rc7 {[%clk 0:00:04]} 49. Bd6 {[%clk 0:00:08]}  Rb7 {[%clk 0:00:04]} 50. Kxc4 {[%clk 0:00:08]}  Nb6+ {[%clk 0:00:04]} 51. Kb5 {[%clk 0:00:09]}  Nd5+ {[%clk 0:00:04]} 52. Kc6 {[%clk 0:00:08]}  Rb6+ {[%clk 0:00:04]} 53. Kc5 {[%clk 0:00:09]} 1-0


[Site "https://www.chess.com"]